bitfinex/quotes_SOLUSD_20220116
["timestamp","ask_amount","ask_price","bid_price","bid_amount"]
[1642358995147,3.68788161,149.08,149.0,23.7604]
[1642358995348,13.55409524,149.07,149.0,23.7604]
[1642358995946,13.55409524,149.07,149.0,90.5904]
[1642358996847,17.24197685,149.07,149.0,90.5904]
[1642358997269,17.24197685,149.07,149.0,97.6349]
[1642358997873,3.68788161,149.07,149.0,97.6349]
[1642358998071,3.68788161,149.07,149.0,97.3849]
[1642358998271,3.68788161,149.07,149.0,107.2349]
[1642358999073,74.59131045,149.1,149.0,107.2349]
[1642358999271,28.66168161,149.1,149.0,114.2429]
[1642358999876,24.9738,149.1,149.0,114.2429]
[1642359000774,28.66168161,149.1,149.0,114.2429]
[1642359001877,3.68788161,149.1,149.0,114.2429]
[1642359002079,5.47470684,149.13,149.01,1.18194626]
[1642359002278,5.47470684,149.13,149.04,7.0412]
[1642359002477,5.47470684,149.13,149.05,33.9122]
[1642359002680,5.47470684,149.13,149.05,35.09414626]
[1642359002880,5.47470684,149.13,149.06,27.45126739]
[1642359003081,9.49500171,149.2,149.07,80.6]
[1642359003284,9.49500171,149.2,149.08,24.9132]
[1642359003580,9.49500171,149.2,149.09,9.6]
[1642359003779,9.49500171,149.2,149.1,24.4352]
[1642359003983,46.0085998,149.19,149.11,30.07890752]
[1642359004179,9.49500171,149.2,149.11,30.07890752]
[1642359004381,9.49500171,149.2,149.11,37.11760752]
[1642359004780,9.49500171,149.2,149.12,9.6]
[1642359004984,9.49500171,149.2,149.13,66.83]
[1642359005182,9.49500171,149.2,149.14,27.45126739]
[1642359005381,5.71924003,149.21,149.14,27.45126739]
[1642359005584,5.71924003,149.21,149.14,34.48916739]
[1642359005883,5.71924003,149.21,149.14,101.31916739]
[1642359007485,42.37091915,149.22,149.14,101.31916739]
[1642359008886,42.37091915,149.22,149.14,34.48916739]
[1642359009989,41.87091915,149.22,149.14,34.48916739]
[1642359011593,41.87091915,149.22,149.14,27.45126739]
[1642359013594,41.87091915,149.22,149.08,23.4626]
[1642359013894,24.0107,149.21,149.1,7.2898]
[1642359014595,24.0107,149.21,149.11,47.92425164]
[1642359015494,10.0577,149.2,149.11,47.92425164]
[1642359015694,21.29890594,149.19,149.11,47.92425164]
[1642359018821,24.0107,149.21,149.11,54.96355164]
[1642359019020,24.0107,149.21,149.11,64.56355164]
[1642359019622,24.0107,149.21,149.12,66.83]
[1642359019824,65.14550181,149.21,149.12,66.83]
[1642359021528,65.14550181,149.21,149.12,73.8688]
[1642359023027,65.14550181,149.21,149.12,7.0388]
[1642359023829,65.14550181,149.21,149.11,47.92425164]
[1642359025330,65.14550181,149.21,149.11,54.96355164]
[1642359025933,65.14550181,149.21,149.11,121.79355164]
[1642359026434,65.14550181,149.21,149.11,54.96355164]
[1642359026933,65.14550181,149.21,149.11,47.92425164]
[1642359027135,71.24650181,149.21,149.11,47.92425164]
[1642359028235,65.14550181,149.21,149.11,47.92425164]
[1642359028435,75.20240181,149.21,149.11,47.92425164]
[1642359028636,84.80240181,149.21,149.07,39.8521]
[1642359029237,3.81547682,149.2,149.07,39.8521]
[1642359029438,4.06547682,149.2,149.07,39.8521]
[1642359029642,4.06547682,149.2,149.08,40.58528749]
[1642359030442,22.03502328,149.16,149.08,40.58528749]
[1642359031338,22.03502328,149.16,149.08,114.45598749]
[1642359032341,22.03502328,149.16,149.08,47.62598749]
[1642359032539,22.03502328,149.16,149.08,40.58528749]
[1642359034341,22.03502328,149.16,149.08,64.62578749]
[1642359034981,10.0589,149.18,149.08,64.62578749]
[1642359035172,10.3077,149.2,149.08,131.45578749]
[1642359035779,10.0577,149.2,149.08,131.45578749]
[1642359035978,37.8650112,149.18,149.08,131.45578749]
[1642359036378,37.8650112,149.18,149.08,138.49648749]
[1642359039879,38.1150112,149.18,149.08,138.74648749]
[1642359042684,38.1150112,149.18,149.08,71.91648749]
[1642359043983,38.1150112,149.18,149.09,66.83]
[1642359044183,38.1150112,149.18,149.08,71.91648749]
[1642359044184,0.25,149.18,149.1,90.3618]
[1642359044483,47.3896,149.21,149.1,97.6515]
[1642359045186,37.18495047,149.2,149.11,17.44488742]
[1642359045385,37.18495047,149.2,149.11,24.73408742]
[1642359045586,37.43495047,149.2,149.12,23.773]
[1642359046386,37.43495047,149.2,149.12,24.023]
[1642359051188,47.49245047,149.2,149.12,24.023]
[1642359051586,47.49245047,149.2,149.11,17.44488742]
[1642359052587,3.81836598,149.19,149.11,17.44488742]
[1642359052787,10.0587,149.18,149.11,17.44488742]
[1642359052990,25.98487462,149.17,149.11,17.44488742]
[1642359053391,26.23487462,149.17,149.11,17.44488742]
[1642359059495,0.25,149.17,149.11,17.44488742]
[1642359059696,57.4466,149.21,149.11,17.69488742]
[1642359060397,3.81879978,149.2,149.12,23.9735]
[1642359060597,46.01279121,149.2,149.12,23.9735]
[1642359061301,42.19399143,149.2,149.12,23.9735]
[1642359061498,52.50149143,149.2,149.12,23.9735]
[1642359062198,3.81928388,149.19,149.12,23.9735]
[1642359062499,4.06928388,149.19,149.12,23.9735]
[1642359063399,14.12748388,149.19,149.12,23.9735]
[1642359063600,10.3082,149.19,149.12,23.9735]
[1642359064600,20.97583366,149.17,149.12,65.76214633]
[1642359064999,21.22583366,149.17,149.12,65.76214633]
[1642359072310,21.22583366,149.17,149.12,23.9735]
[1642359073310,21.22583366,149.17,149.12,67.35049777]
[1642359076213,21.22583366,149.17,149.12,23.9735]
[1642359077216,21.22583366,149.17,149.12,59.76555879]
[1642359079220,0.25,149.17,149.12,59.76555879]
[1642359079420,10.3082,149.19,149.12,59.76555879]
[1642359080321,51.07320281,149.19,149.12,59.76555879]
[1642359080822,3.82398156,149.18,149.12,59.76555879]
[1642359081222,4.07398156,149.18,149.12,59.76555879]
[1642359082325,0.25,149.18,149.12,59.76555879]
[1642359082725,51.07320281,149.19,149.12,59.76555879]
[1642359083325,50.82320281,149.19,149.12,59.76555879]
[1642359084751,51.07320281,149.19,149.12,59.76555879]
[1642359085155,1.91255161,149.15,149.12,59.76555879]
[1642359085355,5.15307404,149.14,149.12,59.76555879]
[1642359085553,5.15307404,149.14,149.12,35.79205879]
[1642359086756,5.15307404,149.14,149.12,36.70338468]
[1642359087158,1.91255161,149.15,149.12,36.70338468]
[1642359087658,5.15307404,149.14,149.12,36.70338468]
[1642359088258,5.15307404,149.14,149.12,0.91132589]
[1642359088457,5.15307404,149.14,149.09,31.6592]
[1642359088659,1.91255161,149.15,149.09,31.6592]
[1642359089259,13.14902233,149.14,149.09,31.6592]
[1642359089459,13.14902233,149.14,149.09,24.6189]
[1642359090361,13.14902233,149.14,149.1,37.85375878]
[1642359090962,13.14902233,149.14,149.1,38.10375878]
[1642359091664,1.91255161,149.15,149.1,38.10375878]
[1642359092769,37.5027623,149.15,149.1,38.10375878]
[1642359095970,1.91255161,149.15,149.1,38.10375878]
[1642359096173,1.91255161,149.15,149.11,66.83]
[1642359096371,1.91255161,149.15,149.12,9.6]
[1642359096572,1.91255161,149.15,149.13,0.91132589]
[1642359096772,5.15307404,149.14,149.12,9.6]
[1642359097173,3.82514361,149.18,149.14,31.0]
[1642359097376,1.91234637,149.16,149.14,31.0]
[1642359097578,4.637e-05,149.16,149.15,9.86]
[1642359097979,4.637e-05,149.16,149.15,10.77132589]
[1642359098175,46.01640046,149.21,149.16,37.85375878]
[1642359098778,46.01640046,149.21,149.15,22.8569]
[1642359098977,46.26640046,149.21,149.15,22.8569]
[1642359099177,47.96717634,149.21,149.1,23.6126]
[1642359099378,24.3947,149.2,149.1,23.6126]
[1642359099776,26.34547588,149.2,149.11,39.04215384]
[1642359099980,29.91631293,149.2,149.11,39.04215384]
[1642359100579,28.91631293,149.2,149.11,39.04215384]
[1642359100777,28.92061949,149.2,149.11,39.04215384]
[1642359101376,10.0588,149.18,149.11,39.04215384]
[1642359101577,17.15342463,149.17,149.11,39.04215384]
[1642359103504,27.21282463,149.17,149.11,39.04215384]
[1642359109511,27.21282463,149.17,149.07,32.811]
[1642359109711,23.7845,149.16,149.07,23.211]
[1642359109911,10.0611,149.14,149.07,23.211]
[1642359110313,10.0611,149.14,149.05,23.7752]
[1642359110711,46.01640046,149.13,149.06,36.93602664]
[1642359112220,56.07830046,149.13,149.06,36.93602664]
[1642359114516,56.07830046,149.13,149.01,107.2355]
[1642359114716,57.77907634,149.13,149.02,23.0156]
[1642359114917,67.37907634,149.13,149.02,23.0156]
[1642359115316,67.37907634,149.13,148.98,4.5960437]
[1642359115517,67.37907634,149.13,148.99,38.4772459]
[1642359115922,67.37907634,149.13,148.98,4.5960437]
[1642359116117,71.20421995,149.13,148.98,4.5960437]
[1642359116321,9.47926268,149.12,148.98,4.5960437]
[1642359116520,10.0677,149.08,148.98,4.5960437]
[1642359116924,17.15342463,149.07,148.99,39.34490071]
[1642359117325,28.45420051,149.07,148.98,4.5960437]
[1642359117526,10.068,149.05,148.98,4.5960437]
[1642359117922,21.36877588,149.05,148.98,4.5960437]
[1642359118531,10.07,149.03,148.98,4.5960437]
[1642359119624,19.67,149.03,148.98,4.5960437]
[1642359120625,86.5,149.03,148.98,4.5960437]
[1642359121027,88.20077588,149.03,148.88,4.5960437]
[1642359121226,96.78277588,149.03,148.88,4.5960437]
[1642359121428,9.47926268,149.02,148.88,4.5960437]
[1642359121726,10.0749,148.98,148.89,35.43228501]
[1642359121926,40.78364275,148.97,148.89,35.43228501]
[1642359123426,10.0748,148.95,148.89,35.43228501]
[1642359123634,22.38618234,148.94,148.89,35.43228501]
[1642359125426,32.46088234,148.94,148.89,35.43228501]
[1642359126928,10.0747,148.94,148.89,35.43228501]
[1642359128031,45.69707296,148.93,148.88,4.5960437]
[1642359128232,55.77277296,148.93,148.88,4.5960437]
[1642359129234,55.77277296,148.93,148.89,42.19827802]
[1642359130235,10.0757,148.93,148.89,42.19827802]
[1642359131141,43.27441579,148.92,148.89,42.19827802]
[1642359131536,53.35071579,148.92,148.89,42.19827802]
[1642359132036,5.15307404,148.91,148.89,42.19827802]
[1642359132637,5.15307404,148.91,148.88,4.5960437]
[1642359133037,15.22997404,148.91,148.88,4.5960437]
[1642359133537,35.62498291,148.9,148.88,4.5960437]
[1642359133737,3.03219997,148.89,148.88,4.5960437]
[1642359134239,15.23127404,148.89,148.88,4.5960437]
[1642359135541,24.83127404,148.89,148.88,4.5960437]
[1642359140949,26.53204992,148.89,148.88,4.5960437]
[1642359141352,26.53204992,148.89,148.83,0.18302593]
[1642359141753,116.08734992,148.89,148.83,0.18302593]
[1642359143883,3.50922938,148.88,148.83,0.18302593]
[1642359144085,42.63089848,148.87,148.83,0.18302593]
[1642359144289,44.33167436,148.87,148.83,0.18302593]
[1642359145486,111.16167436,148.87,148.83,0.18302593]
[1642359145687,44.33167436,148.87,148.83,0.18302593]
[1642359151489,111.16167436,148.87,148.83,0.18302593]
[1642359152398,44.33167436,148.87,148.83,0.18302593]
[1642359155395,1.70077588,148.86,148.83,0.18302593]
[1642359155600,91.66657404,148.85,148.83,0.18302593]
[1642359155996,93.36734992,148.85,148.83,0.18302593]
[1642359156196,26.53734992,148.85,148.83,0.18302593]
[1642359156400,35.62498291,148.84,148.83,0.18302593]
[1642359156597,45.22498291,148.84,148.83,0.18302593]
[1642359158597,10.0844,148.83,148.82,0.101995]
[1642359158798,19.6844,148.83,148.82,0.101995]
[1642359159001,24.83747404,148.83,148.82,0.101995]
[1642359160001,25.08747404,148.83,148.82,0.101995]
[1642359164505,24.83747404,148.83,148.82,0.101995]
[1642359166506,25.08747404,148.83,148.82,0.101995]
[1642359167711,5.40307404,148.83,148.82,0.101995]
[1642359168210,0.25,148.83,148.82,1.01332089]
[1642359170333,0.25,148.83,148.82,0.101995]
[1642359171835,5.40307404,148.83,148.82,0.101995]
[1642359173836,7.10384992,148.83,148.82,0.101995]
[1642359174842,5.40307404,148.83,148.82,0.101995]
[1642359183350,5.40307404,148.83,148.8,0.09184211]
[1642359183351,7.10384992,148.83,148.8,0.09184211]
[1642359183549,19.6856,148.82,148.8,0.09184211]
[1642359184049,19.9356,148.82,148.8,0.09184211]
[1642359184349,22.94879848,148.81,148.8,0.09184211]
[1642359184750,23.19879848,148.81,148.8,0.09184211]
[1642359186849,32.79879848,148.81,148.8,0.09184211]
[1642359187348,37.95187252,148.81,148.8,0.09184211]
[1642359190649,37.70187252,148.81,148.8,0.09184211]
[1642359192051,37.95187252,148.81,148.8,0.09184211]
[1642359201666,37.70187252,148.81,148.8,0.09184211]
[1642359203789,37.95187252,148.81,148.8,0.09184211]
[1642359210695,10.0867,148.8,148.76,1.5969099]
[1642359210894,19.9367,148.8,148.76,1.5969099]
[1642359211293,44.4676,148.8,148.76,1.5969099]
[1642359212297,19.9367,148.8,148.76,1.5969099]
[1642359216112,19.6867,148.8,148.76,1.5969099]
[1642359217509,19.9367,148.8,148.76,1.5969099]
[1642359221420,19.9367,148.8,148.77,0.04608622]
[1642359222348,19.9367,148.8,148.78,0.91132589]
[1642359222746,15.23797404,148.79,148.77,0.04608622]
[1642359222953,15.48797404,148.79,148.77,0.04608622]
[1642359223346,15.23797404,148.79,148.77,0.04608622]
[1642359224851,15.48797404,148.79,148.77,0.04608622]
[1642359233563,15.48797404,148.79,148.77,0.95741211]
[1642359233763,10.3349,148.79,148.77,0.95741211]
[1642359234264,10.3349,148.79,148.78,37.76133387]
[1642359235164,10.3349,148.79,148.77,0.04608622]
[1642359235567,3.03219997,148.78,148.77,0.04608622]
[1642359235967,3.28219997,148.78,148.77,0.04608622]
[1642359236368,3.28219997,148.78,148.77,45.24988164]
[1642359236674,0.25,148.78,148.77,46.16120753]
[1642359237071,0.25,148.78,148.77,0.95741211]
[1642359237472,2.37087407,148.78,148.77,0.04608622]
[1642359237671,5.40307404,148.78,148.77,0.04608622]
[1642359239575,13.83947516,148.78,148.77,0.04608622]
[1642359239776,20.53547516,148.78,148.77,0.04608622]
[1642359239977,20.53547516,148.78,148.76,1.5969099]
[1642359240176,10.0873,148.77,148.76,1.5969099]
[1642359240379,10.3373,148.77,148.76,1.5969099]
[1642359255421,19.61465154,148.77,148.76,1.5969099]
[1642359256021,19.61465154,148.77,148.74,48.70319087]
[1642359256324,10.3373,148.77,148.74,48.70319087]
[1642359256821,10.3373,148.77,148.73,23.2102]
[1642359257023,10.3373,148.77,148.73,22.7102]
[1642359257721,10.3373,148.77,148.72,0.33607233]
[1642359257922,47.82140878,148.77,148.72,0.33607233]
[1642359258223,10.3373,148.77,148.72,0.33607233]
[1642359259222,51.74908759,148.77,148.72,0.33607233]
[1642359259922,51.49908759,148.77,148.72,0.33607233]
[1642359260323,10.0873,148.77,148.72,0.33607233]
[1642359261426,10.3373,148.77,148.72,0.33607233]
[1642359261823,10.0874,148.75,148.72,0.33607233]
[1642359262226,5.15307404,148.74,148.72,0.33607233]
[1642359262429,5.40307404,148.74,148.72,0.33607233]
[1642359264130,5.40307404,148.74,148.72,1.24739822]
[1642359264332,5.40307404,148.74,148.73,19.74736877]
[1642359265233,0.25,148.74,148.73,19.74736877]
[1642359266038,0.25,148.74,148.73,55.74736877]
[1642359266640,0.25,148.74,148.73,19.74736877]
[1642359269063,5.40307404,148.74,148.73,19.74736877]
[1642359269261,5.40307404,148.74,148.72,0.33607233]
[1642359269660,15.49157404,148.74,148.72,0.33607233]
[1642359270861,15.24157404,148.74,148.72,0.33607233]
[1642359271265,15.24157404,148.74,148.72,1.24739822]
[1642359271465,10.0885,148.74,148.72,1.24739822]
[1642359272064,15.24157404,148.74,148.72,1.24739822]
[1642359273066,15.24157404,148.74,148.72,0.33607233]
[1642359273567,15.49157404,148.74,148.72,0.33607233]
[1642359275268,15.24157404,148.74,148.72,0.33607233]
[1642359276870,15.49157404,148.74,148.72,0.33607233]
[1642359278598,38.46184958,148.73,148.72,0.33607233]
[1642359278975,38.71184958,148.73,148.72,0.33607233]
[1642359281383,10.0903,148.72,148.63,23.3384]
[1642359281582,10.0903,148.72,148.64,23.9541]
[1642359281781,9.6,148.71,148.64,23.9541]
[1642359282183,9.85,148.71,148.64,23.9541]
[1642359282384,19.77585949,148.7,148.6,1.91603783]
[1642359282584,10.092,148.69,148.61,21.9069]
[1642359282782,19.692,148.69,148.61,21.9069]
[1642359282984,19.942,148.69,148.61,21.9069]
[1642359283384,19.942,148.69,148.61,61.6386359]
[1642359291314,19.692,148.69,148.61,61.6386359]
[1642359292716,19.942,148.69,148.61,61.6386359]
[1642359301428,28.604,148.69,148.61,61.6386359]
[1642359301927,30.30477588,148.69,148.61,21.9069]
[1642359304228,97.13477588,148.69,148.61,21.9069]
[1642359304428,30.30477588,148.69,148.61,21.9069]
[1642359304629,28.604,148.69,148.61,21.9069]
[1642359305231,95.434,148.69,148.61,21.9069]
[1642359305831,97.09974402,148.69,148.61,21.9069]
[1642359306829,95.434,148.69,148.61,21.9069]
[1642359307634,97.09974402,148.69,148.61,21.9069]
[1642359309733,1.66574402,148.68,148.61,21.9069]
[1642359309937,38.46184958,148.67,148.61,21.9069]
[1642359310137,10.0952,148.66,148.61,21.9069]
[1642359310333,19.6952,148.66,148.58,48.68042203]
[1642359310537,19.9452,148.66,148.58,48.68042203]
[1642359310736,19.9452,148.66,148.57,23.4944]
[1642359311136,86.7752,148.66,148.58,24.8229]
[1642359311741,86.7752,148.66,148.58,66.14888355]
[1642359312140,88.44094402,148.66,148.58,66.14888355]
[1642359312366,28.63103437,148.66,148.58,66.14888355]
[1642359312566,21.61094402,148.66,148.58,66.14888355]
[1642359313565,19.9452,148.66,148.58,66.14888355]
[1642359314866,19.6952,148.66,148.58,66.14888355]
[1642359316070,19.6952,148.66,148.58,66.39888355]
[1642359316268,19.6952,148.66,148.58,66.14888355]
[1642359316467,19.9452,148.66,148.58,66.14888355]
[1642359316867,38.77819849,148.65,148.58,66.14888355]
[1642359317066,48.87279849,148.65,148.58,66.14888355]
[1642359317267,49.12279849,148.65,148.58,66.14888355]
[1642359320473,10.3446,148.65,148.58,66.14888355]
[1642359322678,0.25,148.65,148.58,66.14888355]
[1642359322877,0.25,148.66,148.58,66.14888355]
[1642359323280,10.3431,148.67,148.58,66.14888355]
[1642359323677,48.30492835,148.67,148.58,66.14888355]
[1642359325079,10.0931,148.67,148.58,132.97888355]
[1642359325380,1.66574402,148.68,148.58,133.22888355]
[1642359325781,1.66574402,148.68,148.58,66.39888355]
[1642359326180,48.82664397,148.68,148.58,133.22888355]
[1642359326381,49.07664397,148.68,148.58,133.22888355]
[1642359326682,47.41089995,148.68,148.58,133.22888355]
[1642359327382,57.50349995,148.68,148.58,133.22888355]
[1642359327582,10.3426,148.68,148.58,132.97888355]
[1642359327783,10.3426,148.68,148.58,133.22888355]
[1642359328384,11.75834402,148.68,148.58,133.22888355]
[1642359328585,1.66574402,148.68,148.58,133.22888355]
[1642359328984,1.66574402,148.68,148.59,0.26]
[1642359329184,1.66574402,148.68,148.59,18.783]
[1642359329382,1.66574402,148.69,148.6,66.83]
[1642359329583,1.66574402,148.69,148.62,21.63630738]
[1642359329984,1.66574402,148.69,148.62,27.91430738]
[1642359330386,1.66574402,148.69,148.63,90.8108]
[1642359330785,1.66574402,148.71,148.63,91.0608]
[1642359331889,1.66574402,148.72,148.64,0.26]
[1642359332987,1.66574402,148.74,148.64,0.26]
[1642359333787,1.91574402,148.74,148.64,0.26]
[1642359334389,1.66574402,148.75,148.67,0.95401676]
[1642359334587,1.66574402,148.75,148.68,66.83]
[1642359334991,1.66574402,148.75,148.69,0.26]
[1642359335287,1.66574402,148.75,148.69,41.58598355]
[1642359335489,6.88292037,148.78,148.7,66.83]
[1642359335691,3.05777676,148.78,148.7,66.83]
[1642359335889,3.30777676,148.78,148.7,67.08]
[1642359336492,3.05777676,148.78,148.7,67.08]
[1642359336890,1.39203274,148.78,148.7,67.08]
[1642359338894,1.39203274,148.78,148.7,76.68]
[1642359339293,1.39203274,148.78,148.73,21.63630738]
[1642359339494,44.13457606,148.81,148.73,21.63630738]
[1642359339692,44.13457606,148.81,148.73,112.20500738]
[1642359339894,44.38457606,148.81,148.73,112.20500738]
[1642359340293,0.25,148.81,148.73,112.20500738]
[1642359340493,0.25,148.81,148.74,0.26]
[1642359340698,1.91574402,148.83,148.74,0.26]
[1642359341299,49.90224671,148.83,148.74,0.26]
[1642359341497,48.23650269,148.83,148.74,0.26]
[1642359341896,48.23650269,148.83,148.73,111.95500738]
[1642359342697,48.23650269,148.83,148.73,117.95500738]
[1642359343099,48.23650269,148.83,148.76,0.95401676]
[1642359343297,48.23650269,148.83,148.77,36.19445014]
[1642359343498,47.98650269,148.83,148.77,36.19445014]
[1642359343699,1.66574402,148.84,148.77,36.19445014]
[1642359344099,11.26574402,148.85,148.77,103.02445014]
[1642359344299,11.26574402,148.85,148.77,36.19445014]
[1642359344700,38.05733886,148.84,148.77,36.19445014]
[1642359344912,38.30733886,148.84,148.77,36.19445014]
[1642359346828,0.25,148.84,148.77,36.19445014]
[1642359347428,19.931,148.85,148.77,36.19445014]
[1642359347628,19.931,148.85,148.77,103.02445014]
[1642359348028,44.36364044,148.84,148.77,36.19445014]
[1642359348431,1.66574402,148.86,148.78,66.83]
[1642359348832,36.54084402,148.87,148.78,67.08]
[1642359349232,36.54084402,148.87,148.78,66.83]
[1642359349434,1.66574402,148.87,148.78,67.08]
[1642359349634,0.25,148.87,148.79,0.26]
[1642359349836,13.4312509,148.89,148.79,22.7638]
[1642359350037,13.4312509,148.89,148.8,66.83]
[1642359350236,13.4312509,148.89,148.81,24.2279]
[1642359350536,48.57467353,148.88,148.82,26.76784079]
[1642359350736,58.65357353,148.88,148.82,26.76784079]
[1642359351037,58.90357353,148.88,148.82,26.76784079]
[1642359351537,58.90357353,148.88,148.87,0.95401676]
[1642359351737,64.05664757,148.88,148.82,26.76784079]
[1642359355744,65.72239159,148.88,148.82,26.76784079]
[1642359357744,65.47239159,148.88,148.82,26.76784079]
[1642359358948,65.72239159,148.88,148.82,26.76784079]
[1642359360050,1.66574402,148.87,148.82,26.76784079]
[1642359360446,1.91574402,148.87,148.82,26.76784079]
[1642359360647,11.99514402,148.87,148.78,91.2365]
[1642359360848,36.78524402,148.87,148.78,30.1565]
[1642359361049,36.78524402,148.87,148.78,6.0]
[1642359361250,36.78524402,148.87,148.71,10.2415]
[1642359361447,36.78524402,148.87,148.72,22.7529]
[1642359361650,36.78524402,148.87,148.77,43.007192]
[1642359361850,19.74493554,148.84,148.77,43.007192]
[1642359362349,19.99493554,148.84,148.77,43.007192]
[1642359362749,1.66574402,148.83,148.77,43.007192]
[1642359362949,1.91574402,148.83,148.77,43.007192]
[1642359363349,11.99804402,148.83,148.77,43.007192]
[1642359364651,1.66574402,148.82,148.77,43.007192]
[1642359365052,1.91574402,148.82,148.77,43.007192]
[1642359365652,1.66574402,148.81,148.77,43.007192]
[1642359365852,43.70447343,148.81,148.77,43.007192]
[1642359366953,1.91574402,148.81,148.77,43.007192]
[1642359368057,1.66574402,148.81,148.77,43.007192]
[1642359368255,1.66574402,148.81,148.77,43.257192]
[1642359369056,1.66574402,148.84,148.78,66.83]
[1642359369455,1.91574402,148.84,148.78,67.08]
[1642359372258,22.87558887,148.83,148.78,0.25]
[1642359372459,22.87558887,148.83,148.77,43.257192]
[1642359372961,1.91574402,148.84,148.77,43.257192]
[1642359373361,1.91574402,148.84,148.78,66.83]
[1642359373760,1.91574402,148.84,148.78,67.08]
[1642359374363,1.91574402,148.84,148.78,0.25]
[1642359374760,1.41574402,148.84,148.78,0.25]
[1642359374963,1.41574402,148.84,148.77,49.257192]
[1642359376266,1.41574402,148.84,148.77,116.087192]
[1642359376466,10.0803,148.86,148.77,116.087192]
[1642359376765,3.82514361,148.87,148.77,116.087192]
[1642359376969,0.25,148.86,148.79,66.83]
[1642359377368,0.25,148.86,148.8,19.95509893]
[1642359377568,0.25,148.86,148.81,66.83]
[1642359377969,41.42671142,148.87,148.81,66.83]
[1642359378370,41.42671142,148.87,148.8,19.95509893]
[1642359379270,51.50631142,148.87,148.8,19.95509893]
[1642359379771,55.33145503,148.87,148.8,19.95509893]
[1642359382996,14.15474361,148.87,148.8,19.95509893]
[1642359383195,4.07514361,148.87,148.8,19.95509893]
[1642359384098,0.25,148.87,148.8,86.78509893]
[1642359384499,4.07514361,148.88,148.8,86.78509893]
[1642359385798,0.25,148.88,148.8,86.78509893]
[1642359386001,85.35570477,148.89,148.8,86.78509893]
[1642359386200,85.35570477,148.89,148.81,90.8131]
[1642359387601,85.10570477,148.89,148.81,90.8131]
[1642359387800,85.10570477,148.89,148.81,91.0631]
[1642359388002,85.10570477,148.89,148.81,90.8131]
[1642359389005,85.35570477,148.89,148.81,90.8131]
[1642359389205,85.35570477,148.89,148.81,91.0631]
[1642359391411,81.53056116,148.89,148.81,91.0631]
[1642359392912,81.53056116,148.89,148.81,23.9831]
[1642359393113,85.35570477,148.89,148.81,23.9831]
[1642359393818,7.64924892,148.88,148.81,23.9831]
[1642359394219,7.89924892,148.88,148.81,23.9831]
[1642359395522,4.07514361,148.88,148.81,23.9831]
[1642359395720,14.15394361,148.88,148.81,23.9831]
[1642359395921,14.15394361,148.88,148.76,77.7650954]
[1642359396120,24.8662,148.87,148.76,68.1650954]
[1642359396322,25.1162,148.87,148.76,74.1650954]
[1642359397123,25.1162,148.87,148.77,48.84791645]
[1642359397124,11.05085479,148.86,148.77,48.84791645]
[1642359397323,18.95555026,148.86,148.77,54.84791645]
[1642359397622,10.0809,148.85,148.77,54.84791645]
[1642359398029,10.3309,148.85,148.77,54.84791645]
[1642359398848,14.15604361,148.85,148.77,54.84791645]
[1642359399946,14.00604361,148.85,148.77,121.67791645]
[1642359400147,4.07514361,148.85,148.77,121.67791645]
[1642359400348,4.07514361,148.85,148.77,121.92791645]
[1642359401347,0.25,148.85,148.77,121.92791645]
[1642359401748,4.07514361,148.86,148.78,22.7475]
[1642359401948,50.48969444,148.86,148.78,28.7475]
[1642359402551,46.66455083,148.86,148.78,28.7475]
[1642359403152,50.48969444,148.86,148.78,28.7475]
[1642359403950,14.15534361,148.86,148.78,28.7475]
[1642359404350,14.15534361,148.86,148.78,95.5775]
[1642359404750,14.15534361,148.86,148.78,95.8275]
[1642359404951,3.82514361,148.86,148.78,95.8275]
[1642359405150,3.82514361,148.86,148.78,95.5775]
[1642359405350,0.25,148.86,148.78,95.5775]
[1642359405752,0.25,148.86,148.78,95.8275]
[1642359405955,3.82514361,148.87,148.78,95.8275]
[1642359406152,4.07514361,148.87,148.78,95.8275]
[1642359406351,4.07514361,148.87,148.79,0.26]
[1642359407352,0.25,148.87,148.79,0.26]
[1642359407753,51.48451962,148.88,148.79,0.26]
[1642359407954,0.25,148.88,148.79,0.26]
[1642359408357,5.51235049,148.89,148.79,0.26]
[1642359411961,13.6509745,148.88,148.79,0.26]
[1642359412461,13.9009745,148.88,148.79,0.26]
[1642359415466,13.9009745,148.88,148.78,95.8275]
[1642359417267,13.9009745,148.88,148.79,0.26]
[1642359417694,13.9009745,148.88,148.78,95.8275]
[1642359418895,13.9009745,148.88,148.79,0.26]